{"text_format":"1","workbook":"xlsx","n_sheets":3,"sheets":["#HTML#","#TMP#","#Übersicht#"],"not_rendered":{"charts":0,"images":0,"macros":1,"external_links":0,"defined_names":0,"comments":0,"pivot_tables":0},"unopened":[],"bounds":{"document_bytes":16777216,"sheet_cells":100000,"rows_first":2000,"rows_last":500,"rows_between":2000,"halvings":0,"cell_chars":16384,"cell_head_chars":4096},"cells_cut":0,"cells_raw":0,"read":"whole","date_system":"1900"}

{"sheet":"#HTML#","index":0,"n_rows":0,"n_cols":0,"rows_kept":0,"cut":false,"hidden":false,"merged":[]}

{"sheet":"#TMP#","index":1,"n_rows":0,"n_cols":0,"rows_kept":0,"cut":false,"hidden":false,"merged":[]}

{"sheet":"#Übersicht#","index":2,"n_rows":78,"n_cols":112,"rows_kept":78,"cut":false,"hidden":false,"merged":[[45,2,45,4],[46,2,46,4],[48,2,48,5],[6,6,6,7],[19,6,19,7],[33,6,33,7],[44,2,44,4]]}
["Nr","RefEdit","Max","Jeanie 4",null,null,null,null,null,null,null,null,null,null,null,null,null,"Jeanie3",null,null,null,null,null,null,null,null,null,null,null,null,null,"Gerd, alias Bamberg (1)",null,null,null,null,null,null,null,null,null,null,null,null,null,"Andre",null,null,null,null,null,null,null,null,null,null,null,null,null,"Gerd, alias Bamberg (2)",null,null,null,null,null,null,null,null,null,null,null,null,null,"Karin 1.6"]
[2,"SheetName_",null,null,"Tabelle1",null,null,null,null,null,null,null,null,null,null,null,null,null,"Tabelle1",null,null,null,null,null,null,null,null,null,null,null,null,null,"Arbeitsblatt mit dem Namen 'Tabelle2'",null,null,null,null,null,null,null,null,null,null,null,null,null,"Tabellenblattname: Tabelle1",null,null,null,null,null,null,null,null,null,null,null,null,null,"Arbeitsblatt mit dem Namen 'Tabelle2'"]
[3,"Data_",null,null,null,"A","B",null,null,null,null,null,null,null,null,null,null,null,null,"A","B",null,null,null,null,null,null,null,null,null,null,null,null,"A","B",null,null,null,null,null,null,null,null,null,null,null,null,"A","B",null,null,null,null,null,null,null,null,null,null,null,null,"A","B",null,null,null,null,null,null,null,null,null,null,null,null,"A","B",null,null,null,null,null,null,null,null,null,null,null,null,"A","B"]
[4,"FormulaLocal_",{"$f":"MAX(D4:IV4)","v":2},{"$f":"COUNTA(E4:P4)","v":2},"Zelle","Formel",null,null,null,null,null,null,null,null,null,null,null,{"$f":"COUNTA(S4:AD4)","v":1},"Formeln der Tabelle",null,null,null,null,null,null,null,null,null,null,null,null,{"$f":"COUNTA(AG4:AR4)","v":2},"Zelle","Formel",null,null,null,null,null,null,null,null,null,null,null,{"$f":"COUNTA(AU4:BF4)","v":1},"Benutzte Formeln:",null,null,null,null,null,null,null,null,null,null,null,null,{"$f":"COUNTA(BI4:BT4)","v":2},"Zelle","Formel",null,null,null,null,null,null,null,null,null,null,null,{"$f":"COUNTA(BW4:CH4)","v":2},"Zelle","Formel",null,null,null,null,null,null,null,null,null,null,null,{"$f":"COUNTA(CK4:CV4)","v":0}]
[5,"Condition_",7,3,"Zelle","Nr.: / Bedingung","Format",null,null,null,null,null,null,null,null,null,null,0,null,null,null,null,null,null,null,null,null,null,null,null,null,3,"Zelle","bedingte Formatierung...","Format",null,null,null,null,null,null,null,null,null,null,0,null,null,null,null,null,null,null,null,null,null,null,null,null,3,"Zelle","bedingte Formatierung...","Format",null,null,null,null,null,null,null,null,null,null,7,"Zelle","Typ","Operator","Formel1","Formel2","Format","Unterstrichen",null,null,null,null,null,null,0]
[6,"Validation_",11,5,"Zelle","Zulassen","Daten","Eingabe 1","Eingabe 2",null,null,null,null,null,null,null,null,0,null,null,null,null,null,null,null,null,null,null,null,null,null,5,"Zelle","Gültigkeitstyp","Operator","Wert1","Wert2",null,null,null,null,null,null,null,null,0,null,null,null,null,null,null,null,null,null,null,null,null,null,5,"Zelle","Gültigkeitstyp","Operator","Wert1","Wert2",null,null,null,null,null,null,null,null,11,"Zelle","Zulassen","Daten","Wert1","Wert2","Leere Zellen ignorieren","Zellendropdown","Titel Eingabemeldung","Eingabemeldung","Titel Fehler","Fehlermeldung",null,null,0]
[7,"Name_",3,3,"Zelle","Name","Bezieht sich auf",null,null,null,null,null,null,null,null,null,null,0,null,null,null,null,null,null,null,null,null,null,null,null,null,2,"Name","Bezug",null,null,null,null,null,null,null,null,null,null,null,0,null,null,null,null,null,null,null,null,null,null,null,null,null,2,"Name","Bezug",null,null,null,null,null,null,null,null,null,null,null,2,"Name","Bezieht sich auf",null,null,null,null,null,null,null,null,null,null,null,0]
[8,"Font_",9,0,null,null,null,null,null,null,null,null,null,null,null,null,null,0,null,null,null,null,null,null,null,null,null,null,null,null,null,3,"Zelle","Schriftart","Inhalt",null,null,null,null,null,null,null,null,null,null,0,null,null,null,null,null,null,null,null,null,null,null,null,null,5,"Zelle","Schriftart","Schriftgröße","Extras/Unterstrichen","Inhalt",null,null,null,null,null,null,null,null,9,"Zelle","Rot","Grün","Blau","Color","Stil","Unterstreichung","Effekte","Durchgestrichen",null,null,null,null,0]
[9,"Format_",3,0,null,null,null,null,null,null,null,null,null,null,null,null,null,0,null,null,null,null,null,null,null,null,null,null,null,null,null,3,"Zelle","Format","Wert",null,null,null,null,null,null,null,null,null,null,0,null,null,null,null,null,null,null,null,null,null,null,null,null,3,"Zelle","Format","Wert",null,null,null,null,null,null,null,null,null,null,3,"Zelle","Format","Wert",null,null,null,null,null,null,null,null,null,null,0]
[10,"Interior_",5,0,null,null,null,null,null,null,null,null,null,null,null,null,null,0,null,null,null,null,null,null,null,null,null,null,null,null,null,0,null,null,null,null,null,null,null,null,null,null,null,null,null,0,null,null,null,null,null,null,null,null,null,null,null,null,null,0,null,null,null,null,null,null,null,null,null,null,null,null,null,5,"Zelle","Rot","Grün","Blau","Color",null,null,null,null,null,null,null,null,0]
[11,"Borders_",10,{"$f":"COUNTA(E11:P11)","v":0},null,null,null,null,null,null,null,null,null,null,null,null,null,{"$f":"COUNTA(S11:AD11)","v":0},null,null,null,null,null,null,null,null,null,null,null,null,null,{"$f":"COUNTA(AG11:AR11)","v":0},null,null,null,null,null,null,null,null,null,null,null,null,null,{"$f":"COUNTA(AU11:BF11)","v":0},null,null,null,null,null,null,null,null,null,null,null,null,null,{"$f":"COUNTA(BI11:BT11)","v":0},null,null,null,null,null,null,null,null,null,null,null,null,null,{"$f":"COUNTA(BW11:CH11)","v":10},"Zelle","Nr. Bed.","Linienart","Farbe","Linienart","Farbe","Linienart","Farbe","Linienart","Farbe",null,null,null,{"$f":"COUNTA(CK11:CV11)","v":0}]
[12,"MergedCells_",1,0,null,null,null,null,null,null,null,null,null,null,null,null,null,0,null,null,null,null,null,null,null,null,null,null,null,null,null,0,null,null,null,null,null,null,null,null,null,null,null,null,null,0,null,null,null,null,null,null,null,null,null,null,null,null,null,0,null,null,null,null,null,null,null,null,null,null,null,null,null,1,"verbundene Zellen",null,null,null,null,null,null,null,null,null,null,null,null,0]
[13,null,0,{"$f":"COUNTA(E13:P13)","v":0},null,null,null,null,null,null,null,null,null,null,null,null,null,{"$f":"COUNTA(S13:AD13)","v":0},null,null,null,null,null,null,null,null,null,null,null,null,null,{"$f":"COUNTA(AG13:AR13)","v":0},null,null,null,null,null,null,null,null,null,null,null,null,null,{"$f":"COUNTA(AU13:BF13)","v":0},null,null,null,null,null,null,null,null,null,null,null,null,null,{"$f":"COUNTA(BI13:BT13)","v":0},null,null,null,null,null,null,null,null,null,null,null,null,null,{"$f":"COUNTA(BW13:CH13)","v":0},null,null,null,null,null,null,null,null,null,null,null,null,null,{"$f":"COUNTA(CK13:CV13)","v":0}]
[14,null,0,0,null,null,null,null,null,null,null,null,null,null,null,null,null,0,null,null,null,null,null,null,null,null,null,null,null,null,null,0,null,null,null,null,null,null,null,null,null,null,null,null,null,0,null,null,null,null,null,null,null,null,null,null,null,null,null,0,null,null,null,null,null,null,null,null,null,null,null,null,null,0,null,null,null,null,null,null,null,null,null,null,null,null,null,0]
[15,null,0,0,null,null,null,null,null,null,null,null,null,null,null,null,null,0,null,null,null,null,null,null,null,null,null,null,null,null,null,0,null,null,null,null,null,null,null,null,null,null,null,null,null,0,null,null,null,null,null,null,null,null,null,null,null,null,null,0,null,null,null,null,null,null,null,null,null,null,null,null,null,0,null,null,null,null,null,null,null,null,null,null,null,null,null,0]
[null,"Inhalte / Übernahme"]
[4,"FormulaLocal_",{"$f":"MAX(D17:IV17)","v":2},{"$f":"COUNTA(E17:P17)","v":2},"Cells",".FormulaLocal",null,null,null,null,null,null,null,null,null,null,null,{"$f":"COUNTA(S17:AD17)","v":1},"Cells;.FormulaLocal",null,null,null,null,null,null,null,null,null,null,null,null,{"$f":"COUNTA(AG17:AR17)","v":2},"Cells",".FormulaLocal",null,null,null,null,null,null,null,null,null,null,null,{"$f":"COUNTA(AU17:BF17)","v":1},"Cells;.FormulaLocal",null,null,null,null,null,null,null,null,null,null,null,null,{"$f":"COUNTA(BI17:BT17)","v":2},"Cells",".FormulaLocal",null,null,null,null,null,null,null,null,null,null,null,{"$f":"COUNTA(BW17:CH17)","v":0},null,null,null,null,null,null,null,null,null,null,null,null,null,{"$f":"COUNTA(CK17:CV17)","v":0}]
[5,"Condition_",3,3,"Cells","Nr;.FormulaLocal",".Font.ColorIndex,.Font.Bold,.Font.Italic,.Font.Underline,.Font.Strikethrough",null,null,null,null,null,null,null,null,null,null,0,null,null,null,null,null,null,null,null,null,null,null,null,null,3,"Cells","Nr;.FormulaLocal","{.Font.ColorIndex},{.Font.Bold},{.Font.Italic},{.Font.Underline},{.Font.Strikethrough}",null,null,null,null,null,null,null,null,null,null,0,null,null,null,null,null,null,null,null,null,null,null,null,null,3,"Cells","Nr;.FormulaLocal","{.Font.ColorIndex},{.Font.Bold},{.Font.Italic},{.Font.Underline},{.Font.Strikethrough}",null,null,null,null,null,null,null,null,null,null,0,null,null,null,null,null,null,null,null,null,null,null,null,null,0]
[6,"Validation_",5,5,"Cells",".Type",".Operator",".Formula1",".Formula2",null,null,null,null,null,null,null,null,0,null,null,null,null,null,null,null,null,null,null,null,null,null,5,"Cells",".Type",".Operator",".Formula1",".Formula2",null,null,null,null,null,null,null,null,0,null,null,null,null,null,null,null,null,null,null,null,null,null,5,"Cells",".Type",".Operator",".Formula1",".Formula2",null,null,null,null,null,null,null,null,0,null,null,null,null,null,null,null,null,null,null,null,null,null,0]
[7,"Name_",3,3,"Cells",".Name",".RefersToR1C1",null,null,null,null,null,null,null,null,null,null,0,null,null,null,null,null,null,null,null,null,null,null,null,null,2,"Name",".RefersToR1C1",null,null,null,null,null,null,null,null,null,null,null,0,null,null,null,null,null,null,null,null,null,null,null,null,null,2,"Name",".RefersToR1C1",null,null,null,null,null,null,null,null,null,null,null,0,null,null,null,null,null,null,null,null,null,null,null,null,null,0]
[8,"Font_",5,0,null,null,null,null,null,null,null,null,null,null,null,null,null,0,null,null,null,null,null,null,null,null,null,null,null,null,null,3,"Cells",".Font.Name",".Value",null,null,null,null,null,null,null,null,null,null,0,null,null,null,null,null,null,null,null,null,null,null,null,null,5,"Cells",".Font.Name,[.Font.Bold],[.Font.Italic]",".Font.Size",".Strikethrough,.Superscript,.Subscrip,.Underline ",".Value",null,null,null,null,null,null,null,null,0,null,null,null,null,null,null,null,null,null,null,null,null,null,0]
[9,"Format_",3,0,null,null,null,null,null,null,null,null,null,null,null,null,null,0,null,null,null,null,null,null,null,null,null,null,null,null,null,3,"Cells",".NumberFormatLocal",".Value",null,null,null,null,null,null,null,null,null,null,0,null,null,null,null,null,null,null,null,null,null,null,null,null,3,"Cells",".NumberFormatLocal",".Value",null,null,null,null,null,null,null,null,null,null,0,null,null,null,null,null,null,null,null,null,null,null,null,null,0]
[10,"Interior_",0,0,null,null,null,null,null,null,null,null,null,null,null,null,null,0,null,null,null,null,null,null,null,null,null,null,null,null,null,0,null,null,null,null,null,null,null,null,null,null,null,null,null,0,null,null,null,null,null,null,null,null,null,null,null,null,null,0,null,null,null,null,null,null,null,null,null,null,null,null,null,0,null,null,null,null,null,null,null,null,null,null,null,null,null,0]
[11,"Borders_",0,0,null,null,null,null,null,null,null,null,null,null,null,null,null,0,null,null,null,null,null,null,null,null,null,null,null,null,null,0,null,null,null,null,null,null,null,null,null,null,null,null,null,0,null,null,null,null,null,null,null,null,null,null,null,null,null,0,null,null,null,null,null,null,null,null,null,null,null,null,null,0,null,null,null,null,null,null,null,null,null,null,null,null,null,0]
[12,"MergedCells_",0,0,null,null,null,null,null,null,null,null,null,null,null,null,null,0,null,null,null,null,null,null,null,null,null,null,null,null,null,0,null,null,null,null,null,null,null,null,null,null,null,null,null,0,null,null,null,null,null,null,null,null,null,null,null,null,null,0,null,null,null,null,null,null,null,null,null,null,null,null,null,0,null,null,null,null,null,null,null,null,null,null,null,null,null,0]
[13,null,0,0,null,null,null,null,null,null,null,null,null,null,null,null,null,0,null,null,null,null,null,null,null,null,null,null,null,null,null,0,null,null,null,null,null,null,null,null,null,null,null,null,null,0,null,null,null,null,null,null,null,null,null,null,null,null,null,0,null,null,null,null,null,null,null,null,null,null,null,null,null,0,null,null,null,null,null,null,null,null,null,null,null,null,null,0]
[14,null,0,0,null,null,null,null,null,null,null,null,null,null,null,null,null,0,null,null,null,null,null,null,null,null,null,null,null,null,null,0,null,null,null,null,null,null,null,null,null,null,null,null,null,0,null,null,null,null,null,null,null,null,null,null,null,null,null,0,null,null,null,null,null,null,null,null,null,null,null,null,null,0,null,null,null,null,null,null,null,null,null,null,null,null,null,0]
[15,null,0,0,null,null,null,null,null,null,null,null,null,null,null,null,null,0,null,null,null,null,null,null,null,null,null,null,null,null,null,0,null,null,null,null,null,null,null,null,null,null,null,null,null,0,null,null,null,null,null,null,null,null,null,null,null,null,null,0,null,null,null,null,null,null,null,null,null,null,null,null,null,0,null,null,null,null,null,null,null,null,null,null,null,null,null,0]
[]
[null,"Trenner"]
[4,"FormulaLocal_",{"$f":"MAX(D31:IV31)","v":1},{"$f":"COUNTA(E31:P31)","v":0},null,null,null,null,null,null,null,null,null,null,null,null,null,{"$f":"COUNTA(S31:AD31)","v":1}," : =",null,null,null,null,null,null,null,null,null,null,null,null,{"$f":"COUNTA(AG31:AR31)","v":0},null,null,null,null,null,null,null,null,null,null,null,null,null,{"$f":"COUNTA(AU31:BF31)","v":1},": =",null,null,null,null,null,null,null,null,null,null,null,null,{"$f":"COUNTA(BI31:BT31)","v":0},null,null,null,null,null,null,null,null,null,null,null,null,null,{"$f":"COUNTA(BW31:CH31)","v":0},null,null,null,null,null,null,null,null,null,null,null,null,null,{"$f":"COUNTA(CK31:CV31)","v":0}]
[5,"Condition_",1,1,null,". / Formel ist ",null,null,null,null,null,null,null,null,null,null,null,0,null,null,null,null,null,null,null,null,null,null,null,null,null,1,null,": =",null,null,null,null,null,null,null,null,null,null,null,0,null,null,null,null,null,null,null,null,null,null,null,null,null,1,null,": =",null,null,null,null,null,null,null,null,null,null,null,0,null,null,null,null,null,null,null,null,null,null,null,null,null,0]
[6,"Validation_",0,0,null,null,null,null,null,null,null,null,null,null,null,null,null,0,null,null,null,null,null,null,null,null,null,null,null,null,null,0,null,null,null,null,null,null,null,null,null,null,null,null,null,0,null,null,null,null,null,null,null,null,null,null,null,null,null,0,null,null,null,null,null,null,null,null,null,null,null,null,null,0,null,null,null,null,null,null,null,null,null,null,null,null,null,0]
[7,"Name_",0,0,null,null,null,null,null,null,null,null,null,null,null,null,null,0,null,null,null,null,null,null,null,null,null,null,null,null,null,0,null,null,null,null,null,null,null,null,null,null,null,null,null,0,null,null,null,null,null,null,null,null,null,null,null,null,null,0,null,null,null,null,null,null,null,null,null,null,null,null,null,0,null,null,null,null,null,null,null,null,null,null,null,null,null,0]
[8,"Font_",0,0,null,null,null,null,null,null,null,null,null,null,null,null,null,0,null,null,null,null,null,null,null,null,null,null,null,null,null,0,null,null,null,null,null,null,null,null,null,null,null,null,null,0,null,null,null,null,null,null,null,null,null,null,null,null,null,0,null,null,null,null,null,null,null,null,null,null,null,null,null,0,null,null,null,null,null,null,null,null,null,null,null,null,null,0]
[9,"Format_",0,0,null,null,null,null,null,null,null,null,null,null,null,null,null,0,null,null,null,null,null,null,null,null,null,null,null,null,null,0,null,null,null,null,null,null,null,null,null,null,null,null,null,0,null,null,null,null,null,null,null,null,null,null,null,null,null,0,null,null,null,null,null,null,null,null,null,null,null,null,null,0,null,null,null,null,null,null,null,null,null,null,null,null,null,0]
[10,"Interior_",0,0,null,null,null,null,null,null,null,null,null,null,null,null,null,0,null,null,null,null,null,null,null,null,null,null,null,null,null,0,null,null,null,null,null,null,null,null,null,null,null,null,null,0,null,null,null,null,null,null,null,null,null,null,null,null,null,0,null,null,null,null,null,null,null,null,null,null,null,null,null,0,null,null,null,null,null,null,null,null,null,null,null,null,null,0]
[11,"Borders_",0,0,null,null,null,null,null,null,null,null,null,null,null,null,null,0,null,null,null,null,null,null,null,null,null,null,null,null,null,0,null,null,null,null,null,null,null,null,null,null,null,null,null,0,null,null,null,null,null,null,null,null,null,null,null,null,null,0,null,null,null,null,null,null,null,null,null,null,null,null,null,0,null,null,null,null,null,null,null,null,null,null,null,null,null,0]
[12,"MergedCells_",0,0,null,null,null,null,null,null,null,null,null,null,null,null,null,0,null,null,null,null,null,null,null,null,null,null,null,null,null,0,null,null,null,null,null,null,null,null,null,null,null,null,null,0,null,null,null,null,null,null,null,null,null,null,null,null,null,0,null,null,null,null,null,null,null,null,null,null,null,null,null,0,null,null,null,null,null,null,null,null,null,null,null,null,null,0]
[13,null,0,0,null,null,null,null,null,null,null,null,null,null,null,null,null,0,null,null,null,null,null,null,null,null,null,null,null,null,null,0,null,null,null,null,null,null,null,null,null,null,null,null,null,0,null,null,null,null,null,null,null,null,null,null,null,null,null,0,null,null,null,null,null,null,null,null,null,null,null,null,null,0,null,null,null,null,null,null,null,null,null,null,null,null,null,0]
[14,null,0,0,null,null,null,null,null,null,null,null,null,null,null,null,null,0,null,null,null,null,null,null,null,null,null,null,null,null,null,0,null,null,null,null,null,null,null,null,null,null,null,null,null,0,null,null,null,null,null,null,null,null,null,null,null,null,null,0,null,null,null,null,null,null,null,null,null,null,null,null,null,0,null,null,null,null,null,null,null,null,null,null,null,null,null,0]
[15,null,0,0,null,null,null,null,null,null,null,null,null,null,null,null,null,0,null,null,null,null,null,null,null,null,null,null,null,null,null,0,null,null,null,null,null,null,null,null,null,null,null,null,null,0,null,null,null,null,null,null,null,null,null,null,null,null,null,0,null,null,null,null,null,null,null,null,null,null,null,null,null,0,null,null,null,null,null,null,null,null,null,null,null,null,null,0]
[]
[null,null,null,{"$f":"COLUMN()","v":4},null,null,null,null,null,null,null,null,null,null,null,null,null,{"$f":"COLUMN()","v":18},null,null,null,null,null,null,null,null,null,null,null,null,null,{"$f":"COLUMN()","v":32},null,null,null,null,null,null,null,null,null,null,null,null,null,{"$f":"COLUMN()","v":46},null,null,null,null,null,null,null,null,null,null,null,null,null,{"$f":"COLUMN()","v":60},null,null,null,null,null,null,null,null,null,null,null,null,null,{"$f":"COLUMN()","v":74},null,null,null,null,null,null,null,null,null,null,null,null,null,{"$f":"COLUMN()","v":88},null,null,null,null,null,null,null,null,null,null,null,null,null,{"$f":"COLUMN()","v":102},null,null,null,null,null,null,null,null,null,{"$f":"COLUMN()","v":112}]
[null,"Condition_","Zelle",null,null,"Nr.: / Bedingung","Format",null,null," <-----",null,null,null,null,"Prüfung auf zweite Datenspalte mit Offset ,"]
[null,"Validation_","Zelle",null,null,"Zulassen","Daten","Eingabe 1","Eingabe 2",null,null,null,null,null,"Cells(14,3).Offset(0,1) ergibt Spalte F und nicht D"]
[null,"FormulaLocal_","Zelle",null,null,"Formel",null,null,null,null,null,null,null,null,"Dadurch kein zusätzlicher Konfigurationseintrag nötig"]
[]
[10,"Standardpfad:",null,null,null,null,"per Formel wird der Pfad dieser",null,null,null,null,null,null,null,"Prüfung erfolgt blockweise, über alle Definitionsblöcke."]
[null,null,{"$f":"INFO(\"Verzeichnis\")","v":"C:\\Users\\schauan\\Documents\\"},null,null,null,"Datei geholt",null,null,null,null,null,null,null,"Hier also D1:L11 / N1:V11 usw. über alle Blöcke mit einem"]
[null,"Suchworte:","Offset",null,null,null,null,null,null,null,null,null,null,null,"Eintrag in der ersten Zelle, also D1, N1 usw."]
[null,"Zelle",0,"Beginn eines Datenblocks",null,null,null,null,null,null,null,null,null,null,"Dadurch kann die Suche über die Definitionseinträge ohne"]
[null,"Name",0,"Beginn eines Datenblocks",null,null,null,null,null,null,null,null,null,null,"Codeänderung erweitert oder geändert werden"]
[null,"Name",1,"Name in Formel",null,null,null,null,null,null,null,null,null,null,"Änderungen sind nur bei Fehlern in dieser Anwendung angebracht. "]
[null,"Bezug",1,"Name in Formel",null,null,null,null,null,null,null,null,null,null,"Änderungen der Forumssoftware werden ggf. als Erweiterung eingetragen,"]
[null,"BEDING",1,"Kennzeichen für bedingte Formatierung",null,null,null,null,null,null,null,null,null,null,"da die Anwender nicht alle mit der jeweils aktuellsten Version arbeiten."]
[null,"BEDING",3,"Kennzeichen für bedingte Formatierung",null,null,null,null,null,null,null,null,null,null,"(siehe hier Jeanie 3 + 4 oder Gerd's zwei Versionen)"]
[null,"Zulassen",1,"Datengültigkeit"]
[null,"Gültigkeitstyp",1,"Datengültigkeit",null,null,null,null,null,null,null,null,null,null,"Im Moment gibt Anwendungen mit maximal 5 Spalten."]
[null,"Formel",1,"FormulaLocal",null,null,null,null,null,null,null,null,null,null,"Ich habe als Reserve 3 Spalten und 2 Zeilen vorgesehen, hier I:K usw. und 10:11"]
[null,"Name",null,null,null,null,null,null,null,null,null,null,null,null,"Änderungen sind nur bei Fehlern in dieser Anwendung angebracht. "]
[null,"Formel",null,null,null,null,null,null,null,null,null,null,null,null,"Änderungen der Forumssoftware werden ggf. als Erweiterung eingetragen,"]
[null,"Bedingung",null,null,null,null,null,null,null,null,null,null,null,null,"da die Anwender nicht alle mit der jeweils aktuellsten Version arbeiten."]
[null,"Zulassen",null,null,null,null,null,null,null,null,null,null,null,null,"(siehe hier Jeanie 3 + 4 oder Gerd's zwei Versionen)"]
[null,"Format"]
[null,null,null,null,null,null,null,null,null,null,null,null,null,null,"Im Moment gibt Anwendungen mit maximal 5 Spalten."]
[null,null,null,null,null,null,null,null,null,null,null,null,null,null,"Ich habe als Reserve 3 Spalten und 2 Zeilen vorgesehen, hier I:K usw. und 10:11"]
[]
[null,null,null,null,null,null,null,null,null,null,null,null,null,null,"Die Art und Anordnung der Daten wird anhand der hier eingetragenen"]
[null,null,null,null,null,null,null,null,null,null,null,null,null,null,"Überschriften ermittelt, z.B. Zelle Bedingung Format ergibt als Art"]
[null,null,null,null,null,null,null,null,null,null,null,null,null,null,"die bedingte Formatierung und eine 3-Spaltige Anordnung in der "]
[null,null,null,null,null,null,null,null,null,null,null,null,null,null,"eingetragenen Reihenfolge."]
[]
[]
[]
[]
[null,null,null,null,null,null,null,null,null,null,null,null,null,null,"Das Textfeld \"Breite\" dient der Ermittlung der Spaltenbreite "]
[null,null,null,null,null,null,null,null,null,null,null,null,null,null,"der Listbox auf dem Userform. Also bitte nicht löschen!"]